Department,Entity, Transaction Date, Expense Type, Expense Area, Supplier Name,Transaction number, Amount, Invoice Description
FCDO,CSC,22/02/2022,Alumni Engagement,Programme Costs,AMEX,NOM001113,549.68,
FCDO,CSC,22/02/2022,Alumni Engagement,Programme Costs,AMEX,NOM001115,914.37,
FCDO,CSC,01/02/2022,Scholar Stipend,Award Costs,Scholar,PIN056902,2814.6,
FCDO,CSC,01/02/2022,Scholar Stipend,Award Costs,Scholar,PIN056902,2284.5,
FCDO,CSC,01/02/2022,Scholar Allowances,Award Costs,Scholar,PIN056902,439,
FCDO,CSC,01/02/2022,Scholar Stipend,Award Costs,Scholar,PIN056902,2871.33,
FCDO,CSC,01/02/2022,Scholar Allowances,Award Costs,Scholar,PIN056902,439,
FCDO,CSC,01/02/2022,Scholar Stipend,Award Costs,Scholar,PIN056902,2063.6,
FCDO,CSC,01/02/2022,Scholar Allowances,Award Costs,Scholar,PIN056902,439,
FCDO,CSC,01/02/2022,Scholar Stipend,Award Costs,Scholar,PIN056902,2712.69,
FCDO,CSC,01/02/2022,Bank Charges,Programme Costs,MasterCard Prepaid Management Services Ltd,PIN056902,140.64,
FCDO,CSC,04/02/2022,Award Support Costs,Award Costs,Kings College London,PIN056903,5000,
FCDO,CSC,04/02/2022,Scholar Allowances,Award Costs,The University of Leeds,PIN056904,931.42,
FCDO,CSC,04/02/2022,Visa Costs,Award Costs,The University of Leeds,PIN056904,725,
FCDO,CSC,04/02/2022,Tuition Fee,Award Costs,Sch Oriental & African Studies,PIN056905,15848,
FCDO,CSC,04/02/2022,Tuition Fee,Award Costs,Sch Oriental & African Studies,PIN056906,16000,
FCDO,CSC,04/02/2022,Tuition Fee,Award Costs,Sch Oriental & African Studies,PIN056907,17584,
FCDO,CSC,04/02/2022,Tuition Fee,Award Costs,Sch Oriental & African Studies,PIN056908,16000,
FCDO,CSC,04/02/2022,Tuition Fee,Award Costs,Sch Oriental & African Studies,PIN056909,15848,
FCDO,CSC,04/02/2022,Tuition Fee,Award Costs,Sch Oriental & African Studies,PIN056910,16000,
FCDO,CSC,04/02/2022,Tuition Fee,Award Costs,Heriot Watt University,PIN056911,12570,
FCDO,CSC,04/02/2022,Tuition Fee,Award Costs,University of Strathclyde,PIN056914,22350,
FCDO,CSC,04/02/2022,Tuition Fee,Award Costs,University of Glasgow,PIN056915,22500,
FCDO,CSC,04/02/2022,Tuition Fee,Award Costs,University of Glasgow,PIN056916,18000,
FCDO,CSC,04/02/2022,Tuition Fee,Award Costs,University of Glasgow,PIN056917,22500,
FCDO,CSC,04/02/2022,Tuition Fee,Award Costs,University of Glasgow,PIN056918,17536,
FCDO,CSC,04/02/2022,Tuition Fee,Award Costs,The Open University,PIN056920,31000,
FCDO,CSC,04/02/2022,Tuition Fee,Award Costs,The Open University,PIN056922,43000,
FCDO,CSC,04/02/2022,Tuition Fee,Award Costs,The University of Edinburgh,PIN056923,1915,
FCDO,CSC,04/02/2022,Tuition Fee,Award Costs,University of Dundee,PIN056924,3180,
FCDO,CSC,04/02/2022,Tuition Fee,Award Costs,University of Dundee,PIN056925,1920,
FCDO,CSC,04/02/2022,Tuition Fee,Award Costs,The University of Edinburgh,PIN056926,1915,
FCDO,CSC,04/02/2022,Scholar Allowances,Award Costs,The University of Leeds,PIN056929,1575,
FCDO,CSC,04/02/2022,Tuition Fee,Award Costs,The University of Edinburgh,PIN056930,5745,
FCDO,CSC,04/02/2022,Scholar Allowances,Award Costs,Cranfield University,PIN056931,30.21,
FCDO,CSC,04/02/2022,Visa Costs,Award Costs,Cranfield University,PIN056931,95,
FCDO,CSC,04/02/2022,Scholar Allowances,Award Costs,Cranfield University,PIN056931,225,
FCDO,CSC,04/02/2022,Scholar Allowances,Award Costs,Cranfield University,PIN056931,200,
FCDO,CSC,04/02/2022,Scholar Allowances,Award Costs,Univ of Central Lancashire,PIN056932,170,
FCDO,CSC,04/02/2022,Scholar Allowances,Award Costs,Univ of Central Lancashire,PIN056932,200,
FCDO,CSC,04/02/2022,Scholar Allowances,Award Costs,Univ of Central Lancashire,PIN056932,2285,
FCDO,CSC,04/02/2022,Scholar Travel,Award Costs,Univ of Central Lancashire,PIN056932,655.5,
FCDO,CSC,04/02/2022,Scholar Travel,Award Costs,Univ of Central Lancashire,PIN056932,98.8,
FCDO,CSC,04/02/2022,Award Support Costs,Award Costs,Swansea University,PIN056933,1667,
FCDO,CSC,04/02/2022,Scholar Travel,Award Costs,University of Oxford,PIN056934,515.3,
FCDO,CSC,04/02/2022,Tuition Fee,Award Costs,Cranfield University,PIN056935,15096,
FCDO,CSC,04/02/2022,Scholar Allowances,Award Costs,The University of Leeds,PIN056939,26.38,
FCDO,CSC,04/02/2022,Scholar Allowances,Award Costs,The University of Leeds,PIN056939,1125,
FCDO,CSC,04/02/2022,Scholar Allowances,Award Costs,The University of Leeds,PIN056940,675,
FCDO,CSC,04/02/2022,Immigration Health Surcharge,Award Costs,Scholar,PIN056941,470,
FCDO,CSC,04/02/2022,Visa Costs,Award Costs,Scholar,PIN056941,619.2,
FCDO,CSC,04/02/2022,Commission Meetings,Admin Costs,Goodenough Ventures Limited,PIN056944,19.2,
FCDO,CSC,04/02/2022,Commission Meetings,Admin Costs,Goodenough Ventures Limited,PIN056944,604.8,
FCDO,CSC,04/02/2022,Commission Meetings,Admin Costs,Goodenough Ventures Limited,PIN056944,518.4,
FCDO,CSC,04/02/2022,Commission Meetings,Admin Costs,Goodenough Ventures Limited,PIN056944,22.62,
FCDO,CSC,04/02/2022,Commission Meetings,Admin Costs,Goodenough Ventures Limited,PIN056944,918,
FCDO,CSC,04/02/2022,Scholar Allowances,Award Costs,Diversity Travel,PIN056951,2330,
FCDO,CSC,04/02/2022,Scholar Allowances,Award Costs,Diversity Travel,PIN056951,2330,
FCDO,CSC,04/02/2022,Scholar Allowances,Award Costs,Diversity Travel,PIN056951,2330,
FCDO,CSC,04/02/2022,Scholar Allowances,Award Costs,Diversity Travel,PIN056951,2330,
FCDO,CSC,04/02/2022,Scholar Allowances,Award Costs,Diversity Travel,PIN056951,2330,
FCDO,CSC,04/02/2022,Scholar Allowances,Award Costs,Diversity Travel,PIN056951,2330,
FCDO,CSC,04/02/2022,Scholar Allowances,Award Costs,Diversity Travel,PIN056951,2330,
FCDO,CSC,04/02/2022,Scholar Allowances,Award Costs,Diversity Travel,PIN056951,2330,
FCDO,CSC,04/02/2022,Scholar Allowances,Award Costs,Diversity Travel,PIN056951,2330,
FCDO,CSC,04/02/2022,Scholar Allowances,Award Costs,Diversity Travel,PIN056951,2330,
FCDO,CSC,04/02/2022,Scholar Allowances,Award Costs,Diversity Travel,PIN056951,2330,
FCDO,CSC,04/02/2022,Scholar Allowances,Award Costs,Diversity Travel,PIN056951,2330,
FCDO,CSC,04/02/2022,Scholar Allowances,Award Costs,Diversity Travel,PIN056951,2330,
FCDO,CSC,04/02/2022,Scholar Allowances,Award Costs,Diversity Travel,PIN056951,2330,
FCDO,CSC,04/02/2022,Scholar Allowances,Award Costs,Diversity Travel,PIN056951,2330,
FCDO,CSC,04/02/2022,Scholar Allowances,Award Costs,Diversity Travel,PIN056951,2330,
FCDO,CSC,04/02/2022,Scholar Allowances,Award Costs,Diversity Travel,PIN056951,2330,
FCDO,CSC,04/02/2022,Scholar Allowances,Award Costs,Diversity Travel,PIN056951,2330,
FCDO,CSC,04/02/2022,Scholar Allowances,Award Costs,Diversity Travel,PIN056951,2330,
FCDO,CSC,04/02/2022,Scholar Allowances,Award Costs,Diversity Travel,PIN056951,2330,
FCDO,CSC,04/02/2022,Scholar Allowances,Award Costs,Diversity Travel,PIN056951,2330,
FCDO,CSC,04/02/2022,Scholar Travel,Award Costs,Diversity Travel,PIN056951,1369.8,
FCDO,CSC,04/02/2022,Scholar Travel,Award Costs,Diversity Travel,PIN056951,1040.63,
FCDO,CSC,04/02/2022,Scholar Travel,Award Costs,Diversity Travel,PIN056951,1019.42,
FCDO,CSC,04/02/2022,Scholar Travel,Award Costs,Diversity Travel,PIN056951,1019.42,
FCDO,CSC,04/02/2022,Scholar Travel,Award Costs,Diversity Travel,PIN056951,1011.32,
FCDO,CSC,04/02/2022,Scholar Travel,Award Costs,Diversity Travel,PIN056951,971.9,
FCDO,CSC,04/02/2022,Fieldwork Airfare,Award Costs,Diversity Travel,PIN056951,957.45,
FCDO,CSC,04/02/2022,Scholar Travel,Award Costs,Diversity Travel,PIN056951,949.04,
FCDO,CSC,04/02/2022,Scholar Travel,Award Costs,Diversity Travel,PIN056951,893.36,
FCDO,CSC,04/02/2022,Scholar Travel,Award Costs,Diversity Travel,PIN056951,851.98,
FCDO,CSC,04/02/2022,Scholar Travel,Award Costs,Diversity Travel,PIN056951,809.64,
FCDO,CSC,04/02/2022,Scholar Travel,Award Costs,Diversity Travel,PIN056951,799.1,
FCDO,CSC,04/02/2022,Scholar Travel,Award Costs,Diversity Travel,PIN056951,793.88,
FCDO,CSC,04/02/2022,Scholar Travel,Award Costs,Diversity Travel,PIN056951,776.5,
FCDO,CSC,04/02/2022,Scholar Travel,Award Costs,Diversity Travel,PIN056951,744.56,
FCDO,CSC,04/02/2022,Scholar Travel,Award Costs,Diversity Travel,PIN056951,731.08,
FCDO,CSC,04/02/2022,Scholar Travel,Award Costs,Diversity Travel,PIN056951,720.4,
FCDO,CSC,04/02/2022,Scholar Travel,Award Costs,Diversity Travel,PIN056951,719.3,
FCDO,CSC,04/02/2022,Scholar Travel,Award Costs,Diversity Travel,PIN056951,715.64,
FCDO,CSC,04/02/2022,Scholar Travel,Award Costs,Diversity Travel,PIN056951,715.48,
FCDO,CSC,04/02/2022,Scholar Travel,Award Costs,Diversity Travel,PIN056951,709.46,
FCDO,CSC,04/02/2022,Scholar Travel,Award Costs,Diversity Travel,PIN056951,699.64,
FCDO,CSC,04/02/2022,Scholar Travel,Award Costs,Diversity Travel,PIN056951,695.04,
FCDO,CSC,04/02/2022,Scholar Travel,Award Costs,Diversity Travel,PIN056951,693.58,
FCDO,CSC,04/02/2022,Scholar Travel,Award Costs,Diversity Travel,PIN056951,690.96,
FCDO,CSC,04/02/2022,Scholar Travel,Award Costs,Diversity Travel,PIN056951,678.74,
FCDO,CSC,04/02/2022,Scholar Travel,Award Costs,Diversity Travel,PIN056951,678.6,
FCDO,CSC,04/02/2022,Scholar Travel,Award Costs,Diversity Travel,PIN056951,672.5,
FCDO,CSC,04/02/2022,Scholar Travel,Award Costs,Diversity Travel,PIN056951,654.8,
FCDO,CSC,04/02/2022,Scholar Travel,Award Costs,Diversity Travel,PIN056951,652.8,
FCDO,CSC,04/02/2022,Scholar Travel,Award Costs,Diversity Travel,PIN056951,644.3,
FCDO,CSC,04/02/2022,Scholar Travel,Award Costs,Diversity Travel,PIN056951,625.4,
FCDO,CSC,04/02/2022,Scholar Travel,Award Costs,Diversity Travel,PIN056951,619.7,
FCDO,CSC,04/02/2022,Scholar Travel,Award Costs,Diversity Travel,PIN056951,618.34,
FCDO,CSC,04/02/2022,Scholar Travel,Award Costs,Diversity Travel,PIN056951,606.02,
FCDO,CSC,04/02/2022,Scholar Travel,Award Costs,Diversity Travel,PIN056951,604.52,
FCDO,CSC,04/02/2022,Scholar Travel,Award Costs,Diversity Travel,PIN056951,595.6,
FCDO,CSC,04/02/2022,Scholar Travel,Award Costs,Diversity Travel,PIN056951,593.1,
FCDO,CSC,04/02/2022,Scholar Travel,Award Costs,Diversity Travel,PIN056951,592.52,
FCDO,CSC,04/02/2022,Scholar Travel,Award Costs,Diversity Travel,PIN056951,576.5,
FCDO,CSC,04/02/2022,Scholar Travel,Award Costs,Diversity Travel,PIN056951,568.47,
FCDO,CSC,04/02/2022,Scholar Travel,Award Costs,Diversity Travel,PIN056951,567.44,
FCDO,CSC,04/02/2022,Scholar Travel,Award Costs,Diversity Travel,PIN056951,558.4,
FCDO,CSC,04/02/2022,Scholar Travel,Award Costs,Diversity Travel,PIN056951,557.4,
FCDO,CSC,04/02/2022,Scholar Travel,Award Costs,Diversity Travel,PIN056951,555.98,
FCDO,CSC,04/02/2022,Scholar Travel,Award Costs,Diversity Travel,PIN056951,548.36,
FCDO,CSC,04/02/2022,Scholar Travel,Award Costs,Diversity Travel,PIN056951,543.3,
FCDO,CSC,04/02/2022,Scholar Travel,Award Costs,Diversity Travel,PIN056951,542.62,
FCDO,CSC,04/02/2022,Scholar Travel,Award Costs,Diversity Travel,PIN056951,537.8,
FCDO,CSC,04/02/2022,Scholar Travel,Award Costs,Diversity Travel,PIN056951,537.32,
FCDO,CSC,04/02/2022,Scholar Travel,Award Costs,Diversity Travel,PIN056951,523.85,
FCDO,CSC,04/02/2022,Scholar Travel,Award Costs,Diversity Travel,PIN056951,512.3,
FCDO,CSC,04/02/2022,Scholar Travel,Award Costs,Diversity Travel,PIN056951,506.9,
FCDO,CSC,04/02/2022,Scholar Travel,Award Costs,Diversity Travel,PIN056951,505.06,
FCDO,CSC,04/02/2022,Scholar Travel,Award Costs,Diversity Travel,PIN056951,503.2,
FCDO,CSC,04/02/2022,Scholar Travel,Award Costs,Diversity Travel,PIN056951,501.4,
FCDO,CSC,04/02/2022,Scholar Travel,Award Costs,Diversity Travel,PIN056951,500.52,
FCDO,CSC,04/02/2022,Scholar Travel,Award Costs,Diversity Travel,PIN056951,497.1,
FCDO,CSC,04/02/2022,Scholar Travel,Award Costs,Diversity Travel,PIN056951,496.9,
FCDO,CSC,04/02/2022,Scholar Travel,Award Costs,Diversity Travel,PIN056951,493.1,
FCDO,CSC,04/02/2022,Scholar Travel,Award Costs,Diversity Travel,PIN056951,492.02,
FCDO,CSC,04/02/2022,Scholar Travel,Award Costs,Diversity Travel,PIN056951,483.5,
FCDO,CSC,04/02/2022,Scholar Travel,Award Costs,Diversity Travel,PIN056951,419.44,
FCDO,CSC,04/02/2022,Scholar Travel,Award Costs,Diversity Travel,PIN056951,396.4,
FCDO,CSC,04/02/2022,Scholar Travel,Award Costs,Diversity Travel,PIN056951,390.2,
FCDO,CSC,04/02/2022,Scholar Travel,Award Costs,Diversity Travel,PIN056951,376.24,
FCDO,CSC,04/02/2022,Scholar Travel,Award Costs,Diversity Travel,PIN056951,361.8,
FCDO,CSC,04/02/2022,Scholar Travel,Award Costs,Diversity Travel,PIN056951,315,
FCDO,CSC,04/02/2022,Fieldwork Airfare,Award Costs,Diversity Travel,PIN056951,291,
FCDO,CSC,04/02/2022,Scholar Travel,Award Costs,Diversity Travel,PIN056951,286.77,
FCDO,CSC,04/02/2022,Scholar Travel,Award Costs,Diversity Travel,PIN056951,260.4,
FCDO,CSC,04/02/2022,Scholar Travel,Award Costs,Diversity Travel,PIN056951,242.7,
FCDO,CSC,04/02/2022,Scholar Travel,Award Costs,Diversity Travel,PIN056951,225.48,
FCDO,CSC,04/02/2022,Scholar Travel,Award Costs,Diversity Travel,PIN056951,225.26,
FCDO,CSC,04/02/2022,Scholar Travel,Award Costs,Diversity Travel,PIN056951,218.1,
FCDO,CSC,04/02/2022,Scholar Travel,Award Costs,Diversity Travel,PIN056951,192.9,
FCDO,CSC,04/02/2022,Scholar Travel,Award Costs,Diversity Travel,PIN056951,157.3,
FCDO,CSC,04/02/2022,Scholar Travel,Award Costs,Diversity Travel,PIN056951,133.5,
FCDO,CSC,04/02/2022,Scholar Travel,Award Costs,Diversity Travel,PIN056951,131.62,
FCDO,CSC,04/02/2022,Scholar Travel,Award Costs,Diversity Travel,PIN056951,93.3,
FCDO,CSC,04/02/2022,Scholar Travel,Award Costs,Diversity Travel,PIN056951,85.3,
FCDO,CSC,04/02/2022,Scholar Travel,Award Costs,Diversity Travel,PIN056951,79.69,
FCDO,CSC,04/02/2022,Scholar Travel,Award Costs,Diversity Travel,PIN056951,66,
FCDO,CSC,04/02/2022,Scholar Travel,Award Costs,Diversity Travel,PIN056951,64.4,
FCDO,CSC,04/02/2022,Scholar Travel,Award Costs,Diversity Travel,PIN056951,44.9,
FCDO,CSC,04/02/2022,Scholar Travel,Award Costs,Diversity Travel,PIN056951,30,
FCDO,CSC,04/02/2022,Scholar Travel,Award Costs,Diversity Travel,PIN056951,29.5,
FCDO,CSC,04/02/2022,Scholar Travel,Award Costs,Diversity Travel,PIN056951,20.9,
FCDO,CSC,04/02/2022,Scholar Travel,Award Costs,Diversity Travel,PIN056951,17.5,
FCDO,CSC,04/02/2022,Scholar Travel,Award Costs,Diversity Travel,PIN056951,16.34,
FCDO,CSC,04/02/2022,Scholar Travel,Award Costs,Diversity Travel,PIN056951,-27,
FCDO,CSC,04/02/2022,Scholar Travel,Award Costs,Diversity Travel,PIN056951,-116.68,
FCDO,CSC,04/02/2022,Scholar Travel,Award Costs,Diversity Travel,PIN056951,-172.86,
FCDO,CSC,04/02/2022,Scholar Travel,Award Costs,Diversity Travel,PIN056951,-482.47,
FCDO,CSC,04/02/2022,Scholar Travel,Award Costs,Diversity Travel,PIN056951,-584.94,
FCDO,CSC,04/02/2022,Scholar Allowances,Award Costs,Diversity Travel,PIN056951,-1205,
FCDO,CSC,04/02/2022,Scholar Travel,Award Costs,Diversity Travel,PIN056951,-2212.7,
FCDO,CSC,04/02/2022,Scholar Allowances,Award Costs,Diversity Travel,PIN056951,-2230,
FCDO,CSC,04/02/2022,Scholar Allowances,Award Costs,Diversity Travel,PIN056951,-2285,
FCDO,CSC,04/02/2022,Scholar Allowances,Award Costs,Diversity Travel,PIN056951,-2285,
FCDO,CSC,04/02/2022,Scholar Allowances,Award Costs,Diversity Travel,PIN056952,2330,
FCDO,CSC,04/02/2022,Scholar Allowances,Award Costs,Diversity Travel,PIN056952,2330,
FCDO,CSC,04/02/2022,Scholar Travel,Award Costs,Diversity Travel,PIN056952,1251.13,
FCDO,CSC,04/02/2022,Scholar Travel,Award Costs,Diversity Travel,PIN056952,1137.1,
FCDO,CSC,04/02/2022,Scholar Travel,Award Costs,Diversity Travel,PIN056952,995.48,
FCDO,CSC,04/02/2022,Scholar Travel,Award Costs,Diversity Travel,PIN056952,995.48,
FCDO,CSC,04/02/2022,Scholar Travel,Award Costs,Diversity Travel,PIN056952,980.9,
FCDO,CSC,04/02/2022,Scholar Travel,Award Costs,Diversity Travel,PIN056952,974.08,
FCDO,CSC,04/02/2022,Scholar Travel,Award Costs,Diversity Travel,PIN056952,966.9,
FCDO,CSC,04/02/2022,Scholar Travel,Award Costs,Diversity Travel,PIN056952,954.47,
FCDO,CSC,04/02/2022,Scholar Travel,Award Costs,Diversity Travel,PIN056952,909.6,
FCDO,CSC,04/02/2022,Scholar Travel,Award Costs,Diversity Travel,PIN056952,905.36,
FCDO,CSC,04/02/2022,Scholar Travel,Award Costs,Diversity Travel,PIN056952,841.07,
FCDO,CSC,04/02/2022,Scholar Travel,Award Costs,Diversity Travel,PIN056952,783.18,
FCDO,CSC,04/02/2022,Scholar Travel,Award Costs,Diversity Travel,PIN056952,778.44,
FCDO,CSC,04/02/2022,Scholar Travel,Award Costs,Diversity Travel,PIN056952,767.4,
FCDO,CSC,04/02/2022,Scholar Travel,Award Costs,Diversity Travel,PIN056952,766.8,
FCDO,CSC,04/02/2022,Scholar Travel,Award Costs,Diversity Travel,PIN056952,752.62,
FCDO,CSC,04/02/2022,Scholar Travel,Award Costs,Diversity Travel,PIN056952,751.7,
FCDO,CSC,04/02/2022,Scholar Travel,Award Costs,Diversity Travel,PIN056952,737.8,
FCDO,CSC,04/02/2022,Scholar Travel,Award Costs,Diversity Travel,PIN056952,695.29,
FCDO,CSC,04/02/2022,Scholar Travel,Award Costs,Diversity Travel,PIN056952,678.98,
FCDO,CSC,04/02/2022,Scholar Travel,Award Costs,Diversity Travel,PIN056952,676.4,
FCDO,CSC,04/02/2022,Scholar Travel,Award Costs,Diversity Travel,PIN056952,624.27,
FCDO,CSC,04/02/2022,Scholar Travel,Award Costs,Diversity Travel,PIN056952,604.44,
FCDO,CSC,04/02/2022,Scholar Travel,Award Costs,Diversity Travel,PIN056952,595.56,
FCDO,CSC,04/02/2022,Scholar Travel,Award Costs,Diversity Travel,PIN056952,586.14,
FCDO,CSC,04/02/2022,Scholar Travel,Award Costs,Diversity Travel,PIN056952,573.86,
FCDO,CSC,04/02/2022,Scholar Travel,Award Costs,Diversity Travel,PIN056952,572.58,
FCDO,CSC,04/02/2022,Scholar Travel,Award Costs,Diversity Travel,PIN056952,555.4,
FCDO,CSC,04/02/2022,Scholar Travel,Award Costs,Diversity Travel,PIN056952,554.18,
FCDO,CSC,04/02/2022,Scholar Travel,Award Costs,Diversity Travel,PIN056952,544.14,
FCDO,CSC,04/02/2022,Scholar Travel,Award Costs,Diversity Travel,PIN056952,531.8,
FCDO,CSC,04/02/2022,Scholar Travel,Award Costs,Diversity Travel,PIN056952,530.82,
FCDO,CSC,04/02/2022,Scholar Travel,Award Costs,Diversity Travel,PIN056952,528.44,
FCDO,CSC,04/02/2022,Scholar Travel,Award Costs,Diversity Travel,PIN056952,528.32,
FCDO,CSC,04/02/2022,Scholar Travel,Award Costs,Diversity Travel,PIN056952,522.9,
FCDO,CSC,04/02/2022,Scholar Travel,Award Costs,Diversity Travel,PIN056952,502,
FCDO,CSC,04/02/2022,Scholar Travel,Award Costs,Diversity Travel,PIN056952,501.58,
FCDO,CSC,04/02/2022,Scholar Travel,Award Costs,Diversity Travel,PIN056952,499.72,
FCDO,CSC,04/02/2022,Scholar Travel,Award Costs,Diversity Travel,PIN056952,493.3,
FCDO,CSC,04/02/2022,Scholar Travel,Award Costs,Diversity Travel,PIN056952,488.95,
FCDO,CSC,04/02/2022,Scholar Travel,Award Costs,Diversity Travel,PIN056952,447.1,
FCDO,CSC,04/02/2022,Scholar Travel,Award Costs,Diversity Travel,PIN056952,430.04,
FCDO,CSC,04/02/2022,Scholar Travel,Award Costs,Diversity Travel,PIN056952,395.7,
FCDO,CSC,04/02/2022,Scholar Travel,Award Costs,Diversity Travel,PIN056952,336.51,
FCDO,CSC,04/02/2022,Scholar Travel,Award Costs,Diversity Travel,PIN056952,319.3,
FCDO,CSC,04/02/2022,Scholar Travel,Award Costs,Diversity Travel,PIN056952,287.54,
FCDO,CSC,04/02/2022,Scholar Travel,Award Costs,Diversity Travel,PIN056952,210,
FCDO,CSC,04/02/2022,Scholar Travel,Award Costs,Diversity Travel,PIN056952,153.74,
FCDO,CSC,04/02/2022,Scholar Travel,Award Costs,Diversity Travel,PIN056952,101.2,
FCDO,CSC,04/02/2022,Scholar Travel,Award Costs,Diversity Travel,PIN056952,77.8,
FCDO,CSC,04/02/2022,Scholar Travel,Award Costs,Diversity Travel,PIN056952,65.3,
FCDO,CSC,04/02/2022,Scholar Travel,Award Costs,Diversity Travel,PIN056952,63,
FCDO,CSC,04/02/2022,Scholar Travel,Award Costs,Diversity Travel,PIN056952,60.5,
FCDO,CSC,04/02/2022,Scholar Travel,Award Costs,Diversity Travel,PIN056952,56.8,
FCDO,CSC,04/02/2022,Scholar Travel,Award Costs,Diversity Travel,PIN056952,51.8,
FCDO,CSC,04/02/2022,Scholar Travel,Award Costs,Diversity Travel,PIN056952,51.3,
FCDO,CSC,04/02/2022,Scholar Travel,Award Costs,Diversity Travel,PIN056952,49.8,
FCDO,CSC,04/02/2022,Scholar Travel,Award Costs,Diversity Travel,PIN056952,42.6,
FCDO,CSC,04/02/2022,Scholar Travel,Award Costs,Diversity Travel,PIN056952,39.5,
FCDO,CSC,04/02/2022,Scholar Travel,Award Costs,Diversity Travel,PIN056952,-18.11,
FCDO,CSC,04/02/2022,Scholar Travel,Award Costs,Diversity Travel,PIN056952,-67.8,
FCDO,CSC,04/02/2022,Scholar Travel,Award Costs,Diversity Travel,PIN056952,-70.2,
FCDO,CSC,04/02/2022,Scholar Travel,Award Costs,Diversity Travel,PIN056952,-173.97,
FCDO,CSC,04/02/2022,Scholar Travel,Award Costs,Diversity Travel,PIN056952,-415.5,
FCDO,CSC,04/02/2022,Scholar Travel,Award Costs,Diversity Travel,PIN056952,-441.3,
FCDO,CSC,04/02/2022,Scholar Travel,Award Costs,Diversity Travel,PIN056952,-454.8,
FCDO,CSC,04/02/2022,Scholar Travel,Award Costs,Diversity Travel,PIN056952,-647.76,
FCDO,CSC,04/02/2022,Scholar Travel,Award Costs,Diversity Travel,PIN056952,-971.9,
FCDO,CSC,04/02/2022,Scholar Travel,Award Costs,Diversity Travel,PIN056952,-995.48,
FCDO,CSC,04/02/2022,Scholar Allowances,Award Costs,Diversity Travel,PIN056952,-1190,
FCDO,CSC,04/02/2022,Scholar Allowances,Award Costs,Diversity Travel,PIN056952,-1480,
FCDO,CSC,04/02/2022,Scholar Allowances,Award Costs,Diversity Travel,PIN056953,2330,
FCDO,CSC,04/02/2022,Scholar Travel,Award Costs,Diversity Travel,PIN056953,2034.78,
FCDO,CSC,04/02/2022,Fieldwork Airfare,Award Costs,Diversity Travel,PIN056953,1521.91,
FCDO,CSC,04/02/2022,Scholar Travel,Award Costs,Diversity Travel,PIN056953,1101.07,
FCDO,CSC,04/02/2022,Award Support Costs,Award Costs,Diversity Travel,PIN056953,1097.68,
FCDO,CSC,04/02/2022,Scholar Travel,Award Costs,Diversity Travel,PIN056953,1079.64,
FCDO,CSC,04/02/2022,Scholar Travel,Award Costs,Diversity Travel,PIN056953,976.4,
FCDO,CSC,04/02/2022,Scholar Travel,Award Costs,Diversity Travel,PIN056953,856.94,
FCDO,CSC,04/02/2022,Scholar Travel,Award Costs,Diversity Travel,PIN056953,800.46,
FCDO,CSC,04/02/2022,Scholar Travel,Award Costs,Diversity Travel,PIN056953,798.78,
FCDO,CSC,04/02/2022,Scholar Travel,Award Costs,Diversity Travel,PIN056953,764.38,
FCDO,CSC,04/02/2022,Scholar Travel,Award Costs,Diversity Travel,PIN056953,707.46,
FCDO,CSC,04/02/2022,Scholar Travel,Award Costs,Diversity Travel,PIN056953,695.04,
FCDO,CSC,04/02/2022,Scholar Travel,Award Costs,Diversity Travel,PIN056953,692.98,
FCDO,CSC,04/02/2022,Scholar Travel,Award Costs,Diversity Travel,PIN056953,640.5,
FCDO,CSC,04/02/2022,Fieldwork Airfare,Award Costs,Diversity Travel,PIN056953,569.04,
FCDO,CSC,04/02/2022,Scholar Travel,Award Costs,Diversity Travel,PIN056953,563.98,
FCDO,CSC,04/02/2022,Scholar Travel,Award Costs,Diversity Travel,PIN056953,546.5,
FCDO,CSC,04/02/2022,Scholar Travel,Award Costs,Diversity Travel,PIN056953,507.78,
FCDO,CSC,04/02/2022,Scholar Travel,Award Costs,Diversity Travel,PIN056953,398.1,
FCDO,CSC,04/02/2022,Scholar Travel,Award Costs,Diversity Travel,PIN056953,236.92,
FCDO,CSC,04/02/2022,Fieldwork Airfare,Award Costs,Diversity Travel,PIN056953,141.9,
FCDO,CSC,04/02/2022,Scholar Travel,Award Costs,Diversity Travel,PIN056953,60.5,
FCDO,CSC,04/02/2022,Scholar Travel,Award Costs,Diversity Travel,PIN056953,38.7,
FCDO,CSC,04/02/2022,Scholar Travel,Award Costs,Diversity Travel,PIN056953,38.7,
FCDO,CSC,04/02/2022,Scholar Travel,Award Costs,Diversity Travel,PIN056953,31.19,
FCDO,CSC,04/02/2022,Scholar Travel,Award Costs,Diversity Travel,PIN056953,26,
FCDO,CSC,04/02/2022,Scholar Travel,Award Costs,Diversity Travel,PIN056953,25,
FCDO,CSC,04/02/2022,Scholar Travel,Award Costs,Diversity Travel,PIN056953,21.5,
FCDO,CSC,04/02/2022,Scholar Travel,Award Costs,Diversity Travel,PIN056953,21.5,
FCDO,CSC,04/02/2022,Scholar Travel,Award Costs,Diversity Travel,PIN056953,-7.6,
FCDO,CSC,04/02/2022,Scholar Travel,Award Costs,Diversity Travel,PIN056953,-38.7,
FCDO,CSC,04/02/2022,Scholar Travel,Award Costs,Diversity Travel,PIN056953,-64.4,
FCDO,CSC,04/02/2022,Scholar Travel,Award Costs,Diversity Travel,PIN056953,-245.9,
FCDO,CSC,04/02/2022,Scholar Travel,Award Costs,Diversity Travel,PIN056953,-310.3,
FCDO,CSC,04/02/2022,Scholar Allowances,Award Costs,Diversity Travel,PIN056953,-2195,
FCDO,CSC,04/02/2022,Fieldwork Airfare,Award Costs,Diversity Travel,PIN056954,1399.32,
FCDO,CSC,04/02/2022,Scholar Travel,Award Costs,Diversity Travel,PIN056954,1245.96,
FCDO,CSC,04/02/2022,Scholar Travel,Award Costs,Diversity Travel,PIN056954,1165.3,
FCDO,CSC,04/02/2022,Fieldwork Airfare,Award Costs,Diversity Travel,PIN056954,807.72,
FCDO,CSC,04/02/2022,Scholar Travel,Award Costs,Diversity Travel,PIN056954,705.5,
FCDO,CSC,04/02/2022,Scholar Travel,Award Costs,Diversity Travel,PIN056954,699.88,
FCDO,CSC,04/02/2022,Scholar Travel,Award Costs,Diversity Travel,PIN056954,699.31,
FCDO,CSC,04/02/2022,Scholar Travel,Award Costs,Diversity Travel,PIN056954,603.96,
FCDO,CSC,04/02/2022,Scholar Travel,Award Costs,Diversity Travel,PIN056954,597.26,
FCDO,CSC,04/02/2022,Scholar Travel,Award Costs,Diversity Travel,PIN056954,595.4,
FCDO,CSC,04/02/2022,Scholar Travel,Award Costs,Diversity Travel,PIN056954,592,
FCDO,CSC,04/02/2022,Scholar Travel,Award Costs,Diversity Travel,PIN056954,555.01,
FCDO,CSC,04/02/2022,Scholar Travel,Award Costs,Diversity Travel,PIN056954,543.26,
FCDO,CSC,04/02/2022,Scholar Travel,Award Costs,Diversity Travel,PIN056954,541.73,
FCDO,CSC,04/02/2022,Scholar Travel,Award Costs,Diversity Travel,PIN056954,489.65,
FCDO,CSC,04/02/2022,Scholar Travel,Award Costs,Diversity Travel,PIN056954,417.9,
FCDO,CSC,04/02/2022,Scholar Travel,Award Costs,Diversity Travel,PIN056954,395.78,
FCDO,CSC,04/02/2022,Scholar Travel,Award Costs,Diversity Travel,PIN056954,384.77,
FCDO,CSC,04/02/2022,Scholar Travel,Award Costs,Diversity Travel,PIN056954,378.46,
FCDO,CSC,04/02/2022,Scholar Travel,Award Costs,Diversity Travel,PIN056954,145,
FCDO,CSC,04/02/2022,Scholar Travel,Award Costs,Diversity Travel,PIN056954,92.3,
FCDO,CSC,04/02/2022,Scholar Travel,Award Costs,Diversity Travel,PIN056954,81.1,
FCDO,CSC,04/02/2022,Scholar Travel,Award Costs,Diversity Travel,PIN056954,72.1,
FCDO,CSC,04/02/2022,Scholar Travel,Award Costs,Diversity Travel,PIN056954,65.3,
FCDO,CSC,04/02/2022,Scholar Travel,Award Costs,Diversity Travel,PIN056954,46.5,
FCDO,CSC,04/02/2022,Scholar Travel,Award Costs,Diversity Travel,PIN056954,14,
FCDO,CSC,04/02/2022,Scholar Travel,Award Costs,Diversity Travel,PIN056954,-344.78,
FCDO,CSC,04/02/2022,Scholar Travel,Award Costs,Diversity Travel,PIN056954,-582.42,
FCDO,CSC,04/02/2022,Scholar Allowances,Award Costs,Diversity Travel,PIN056954,-2240,
FCDO,CSC,04/02/2022,Scholar Engagement,Programme Costs,QUEEN ELIZABETH CENTRE,PIN056955,20515.2,
FCDO,CSC,04/02/2022,Engagement,Programme Costs,Shaw Trust Ltd,PIN056957,2361.6,
FCDO,CSC,03/02/2022,Scholar Stipend,Award Costs,Scholar,PIN056961,1699.5,
FCDO,CSC,03/02/2022,Scholar Allowances,Award Costs,Scholar,PIN056963,136,
FCDO,CSC,03/02/2022,Scholar Stipend,Award Costs,Scholar,PIN056963,2266,
FCDO,CSC,03/02/2022,Scholar Stipend,Award Costs,Scholar,PIN056964,1133,
FCDO,CSC,03/02/2022,Scholar Allowances,Award Costs,Scholar,PIN056964,244,
FCDO,CSC,03/02/2022,Scholar Stipend,Award Costs,Scholar,PIN056964,566.5,
FCDO,CSC,03/02/2022,Scholar Stipend,Award Costs,Scholar,PIN056966,1133,
FCDO,CSC,03/02/2022,Scholar Stipend,Award Costs,Scholar,PIN056966,566.5,
FCDO,CSC,07/02/2022,Scholar Allowances,Award Costs,Scholar,PIN056969,250,
FCDO,CSC,07/02/2022,Scholar Stipend,Award Costs,Scholar,PIN056969,428.07,
FCDO,CSC,07/02/2022,Scholar Stipend,Award Costs,Scholar,PIN056970,1005.4,
FCDO,CSC,11/02/2022,Tuition Fee,Award Costs,Aston University,PIN056973,11600,
FCDO,CSC,11/02/2022,Tuition Fee,Award Costs,Linacre College Oxford,PIN056974,22500,
FCDO,CSC,11/02/2022,Tuition Fee,Award Costs,Linacre College Oxford,PIN056975,22500,
FCDO,CSC,11/02/2022,Tuition Fee,Award Costs,University of Glasgow,PIN056976,22500,
FCDO,CSC,11/02/2022,Tuition Fee,Award Costs,University of Glasgow,PIN056977,7306.67,
FCDO,CSC,11/02/2022,Tuition Fee,Award Costs,University of Durham,PIN056978,44000,
FCDO,CSC,11/02/2022,Tuition Fee,Award Costs,University of Hull,PIN056980,14000,
FCDO,CSC,11/02/2022,Scholar Allowances,Award Costs,Ardour Healthcare,PIN056981,3472,
FCDO,CSC,11/02/2022,Scholar Allowances,Award Costs,Ardour Healthcare,PIN056982,3024,
FCDO,CSC,11/02/2022,Award Support Costs,Award Costs,Kings College London,PIN056983,5000,
FCDO,CSC,11/02/2022,Tuition Fee,Award Costs,The University of Edinburgh,PIN056984,5755,
FCDO,CSC,11/02/2022,Tuition Fee,Award Costs,University of Oxford,PIN056985,22500,
FCDO,CSC,11/02/2022,Tuition Fee,Award Costs,University of Liverpool,PIN056986,5000,
FCDO,CSC,11/02/2022,Scholar Allowances,Award Costs,Scholar,PIN056988,600,
FCDO,CSC,11/02/2022,Tuition Fee,Award Costs,University of Strathclyde,PIN056989,21850,
FCDO,CSC,11/02/2022,Tuition Fee,Award Costs,University of Glasgow,PIN056990,5845.34,
FCDO,CSC,11/02/2022,Award Support Costs,Award Costs,University of Oxford,PIN056991,5000,
FCDO,CSC,11/02/2022,Award Support Costs,Award Costs,University of Glasgow,PIN056992,5000,
FCDO,CSC,11/02/2022,Award Support Costs,Award Costs,University of the West of England Bristol,PIN056993,24000,
FCDO,CSC,11/02/2022,Scholar Allowances,Award Costs,Scholar,PIN056994,600,
FCDO,CSC,11/02/2022,Tuition Fee,Award Costs,University of Bradford,PIN056995,14145.6,
FCDO,CSC,11/02/2022,Award Support Costs,Award Costs,University of Wolverhampton,PIN056996,20000,
FCDO,CSC,11/02/2022,Tuition Fee,Award Costs,University of Bradford,PIN056997,16708,
FCDO,CSC,11/02/2022,Award Support Costs,Award Costs,The University of Leeds,PIN056998,5000,
FCDO,CSC,11/02/2022,Tuition Fee,Award Costs,University of the West of England Bristol,PIN056999,11000,
FCDO,CSC,11/02/2022,Tuition Fee,Award Costs,The University of Leeds,PIN057000,15600,
FCDO,CSC,11/02/2022,Tuition Fee,Award Costs,University of Manchester,PIN057001,18000,
FCDO,CSC,11/02/2022,Tuition Fee,Award Costs,University of Manchester,PIN057002,18000,
FCDO,CSC,11/02/2022,Tuition Fee,Award Costs,University of Manchester,PIN057003,18000,
FCDO,CSC,11/02/2022,Tuition Fee,Award Costs,University of Manchester,PIN057004,13720,
FCDO,CSC,11/02/2022,Tuition Fee,Award Costs,University of Manchester,PIN057005,18000,
FCDO,CSC,11/02/2022,Tuition Fee,Award Costs,University of Manchester,PIN057006,18000,
FCDO,CSC,11/02/2022,Tuition Fee,Award Costs,Nottingham Trent University,PIN057007,12400,
FCDO,CSC,11/02/2022,Tuition Fee,Award Costs,University of Manchester,PIN057008,17600,
FCDO,CSC,11/02/2022,Tuition Fee,Award Costs,University of Manchester,PIN057009,18000,
FCDO,CSC,11/02/2022,Tuition Fee,Award Costs,University of Manchester,PIN057011,18000,
FCDO,CSC,11/02/2022,Tuition Fee,Award Costs,University of Manchester,PIN057012,18000,
FCDO,CSC,11/02/2022,Tuition Fee,Award Costs,University of Manchester,PIN057013,18000,
FCDO,CSC,11/02/2022,Tuition Fee,Award Costs,University of Manchester,PIN057014,15600,
FCDO,CSC,11/02/2022,Award Support Costs,Award Costs,University of Oxford,PIN057015,5000,
FCDO,CSC,11/02/2022,Tuition Fee,Award Costs,The University of Leeds,PIN057016,15600,
FCDO,CSC,11/02/2022,Award Support Costs,Award Costs,University of Oxford,PIN057017,5000,
FCDO,CSC,11/02/2022,Scholar Allowances,Award Costs,Liverpool School of Tropical Medicine,PIN057019,845.49,
FCDO,CSC,11/02/2022,Tuition Fee,Award Costs,The University of Edinburgh,PIN057020,960,
FCDO,CSC,11/02/2022,Tuition Fee,Award Costs,The Cambridge Commonwealth Trust,PIN057021,18000,
FCDO,CSC,11/02/2022,Tuition Fee,Award Costs,The Cambridge Commonwealth Trust,PIN057021,18000,
FCDO,CSC,11/02/2022,Tuition Fee,Award Costs,The Cambridge Commonwealth Trust,PIN057021,18000,
FCDO,CSC,11/02/2022,Tuition Fee,Award Costs,The Cambridge Commonwealth Trust,PIN057021,18000,
FCDO,CSC,11/02/2022,Tuition Fee,Award Costs,The Cambridge Commonwealth Trust,PIN057021,18000,
FCDO,CSC,11/02/2022,Tuition Fee,Award Costs,The Cambridge Commonwealth Trust,PIN057021,18000,
FCDO,CSC,11/02/2022,Tuition Fee,Award Costs,The Cambridge Commonwealth Trust,PIN057021,18000,
FCDO,CSC,11/02/2022,Tuition Fee,Award Costs,The Cambridge Commonwealth Trust,PIN057021,18000,
FCDO,CSC,11/02/2022,Tuition Fee,Award Costs,The Cambridge Commonwealth Trust,PIN057021,18000,
FCDO,CSC,11/02/2022,Tuition Fee,Award Costs,The Cambridge Commonwealth Trust,PIN057021,18000,
FCDO,CSC,11/02/2022,Tuition Fee,Award Costs,The Cambridge Commonwealth Trust,PIN057021,12000,
FCDO,CSC,11/02/2022,Tuition Fee,Award Costs,The Cambridge Commonwealth Trust,PIN057021,18000,
FCDO,CSC,11/02/2022,Tuition Fee,Award Costs,The Cambridge Commonwealth Trust,PIN057021,18000,
FCDO,CSC,11/02/2022,Tuition Fee,Award Costs,The Cambridge Commonwealth Trust,PIN057021,18000,
FCDO,CSC,11/02/2022,Tuition Fee,Award Costs,The Cambridge Commonwealth Trust,PIN057021,18000,
FCDO,CSC,11/02/2022,Tuition Fee,Award Costs,The Cambridge Commonwealth Trust,PIN057021,18000,
FCDO,CSC,11/02/2022,Tuition Fee,Award Costs,The Cambridge Commonwealth Trust,PIN057021,18000,
FCDO,CSC,11/02/2022,Tuition Fee,Award Costs,The Cambridge Commonwealth Trust,PIN057021,18000,
FCDO,CSC,11/02/2022,Tuition Fee,Award Costs,The Cambridge Commonwealth Trust,PIN057021,18000,
FCDO,CSC,11/02/2022,Tuition Fee,Award Costs,The Cambridge Commonwealth Trust,PIN057021,18000,
FCDO,CSC,11/02/2022,Tuition Fee,Award Costs,The Cambridge Commonwealth Trust,PIN057021,18000,
FCDO,CSC,11/02/2022,Tuition Fee,Award Costs,The Cambridge Commonwealth Trust,PIN057021,18000,
FCDO,CSC,11/02/2022,Tuition Fee,Award Costs,The Cambridge Commonwealth Trust,PIN057022,-12000,
FCDO,CSC,11/02/2022,Award Support Costs,Award Costs,University of Greenwich,PIN057023,5000,
FCDO,CSC,11/02/2022,Tuition Fee,Award Costs,University of Portsmouth,PIN057024,13520,
FCDO,CSC,11/02/2022,Tuition Fee,Award Costs,University of Newcastle upon Tyne,PIN057025,18000,
FCDO,CSC,11/02/2022,Tuition Fee,Award Costs,Queens University Belfast,PIN057026,13040,
FCDO,CSC,11/02/2022,Award Support Costs,Award Costs,Queens University Belfast,PIN057027,2000,
FCDO,CSC,11/02/2022,Tuition Fee,Award Costs,Queens University Belfast,PIN057027,8120,
FCDO,CSC,11/02/2022,Tuition Fee,Award Costs,University of Bath,PIN057028,22500,
FCDO,CSC,11/02/2022,Scholar Allowances,Award Costs,University of Bath,PIN057028,200,
FCDO,CSC,11/02/2022,Scholar Allowances,Award Costs,University of Bath,PIN057028,225,
FCDO,CSC,11/02/2022,Visa Costs,Award Costs,University of Bath,PIN057028,93.74,
FCDO,CSC,11/02/2022,Scholar Allowances,Award Costs,University of Bath,PIN057028,30.36,
FCDO,CSC,11/02/2022,Scholar Travel,Award Costs,University of Bath,PIN057028,620.7,
FCDO,CSC,11/02/2022,Scholar Travel,Award Costs,University of Bath,PIN057028,76,
FCDO,CSC,11/02/2022,Scholar Travel,Award Costs,University of Bristol,PIN057030,852,
FCDO,CSC,11/02/2022,Tuition Fee,Award Costs,Queens University Belfast,PIN057031,4061.42,
FCDO,CSC,11/02/2022,Tuition Fee,Award Costs,Queens University Belfast,PIN057032,17700,
FCDO,CSC,11/02/2022,Tuition Fee,Award Costs,Jesus College Oxford,PIN057033,22500,
FCDO,CSC,11/02/2022,Scholar Allowances,Award Costs,Scholar,PIN057034,600,
FCDO,CSC,11/02/2022,Scholar Allowances,Award Costs,University of Oxford,PIN057035,114,
FCDO,CSC,11/02/2022,Scholar Allowances,Award Costs,University of Oxford,PIN057035,275,
FCDO,CSC,11/02/2022,Scholar Travel,Award Costs,University of Oxford,PIN057035,328.52,
FCDO,CSC,11/02/2022,Immigration Health Surcharge,Award Costs,Scholar,PIN057037,470,
FCDO,CSC,11/02/2022,Visa Costs,Award Costs,Scholar,PIN057037,494.2,
FCDO,CSC,11/02/2022,Tuition Fee,Award Costs,Leeds Beckett University,PIN057039,10000,
FCDO,CSC,11/02/2022,Tuition Fee,Award Costs,Wadham College Oxford,PIN057040,18000,
FCDO,CSC,11/02/2022,Tuition Fee,Award Costs,Kings College London,PIN057041,3600,
FCDO,CSC,11/02/2022,Tuition Fee,Award Costs,The University of Leeds,PIN057042,15600,
FCDO,CSC,11/02/2022,Scholar Engagement,Programme Costs,Flash Fields Photography,PIN057043,1000,
FCDO,CSC,09/02/2022,Scholar Allowances,Award Costs,Scholar,PIN057044,1304.53,
FCDO,CSC,09/02/2022,Scholar Allowances,Award Costs,Scholar,PIN057045,1615.61,
FCDO,CSC,11/02/2022,Scholar Allowances,Award Costs,Scholar,PIN057046,275,
FCDO,CSC,11/02/2022,Scholar Stipend,Award Costs,Scholar,PIN057046,1133,
FCDO,CSC,11/02/2022,Scholar Allowances,Award Costs,Scholar,PIN057047,1933.02,
FCDO,CSC,18/02/2022,Tuition Fee,Award Costs,The University of Warwick,PIN057048,18000,
FCDO,CSC,18/02/2022,Tuition Fee,Award Costs,University of Bristol,PIN057049,20300,
FCDO,CSC,18/02/2022,Award Support Costs,Award Costs,Keele University,PIN057050,10000,
FCDO,CSC,18/02/2022,Award Support Costs,Award Costs,Lond Sch Hygiene & Tropical Me,PIN057051,4900,
FCDO,CSC,18/02/2022,Tuition Fee,Award Costs,University of Leicester,PIN057052,13460,
FCDO,CSC,18/02/2022,Award Support Costs,Award Costs,Lond Sch Hygiene & Tropical Me,PIN057053,4900,
FCDO,CSC,18/02/2022,Award Support Costs,Award Costs,The University of Warwick,PIN057055,5000,
FCDO,CSC,18/02/2022,Tuition Fee,Award Costs,University of Southampton,PIN057058,56484,
FCDO,CSC,18/02/2022,Tuition Fee,Award Costs,Lancaster University,PIN057059,7700.5,
FCDO,CSC,18/02/2022,Tuition Fee,Award Costs,Lancaster University,PIN057059,23019.5,
FCDO,CSC,18/02/2022,Tuition Fee,Award Costs,Lancaster University,PIN057060,12531,
FCDO,CSC,18/02/2022,Tuition Fee,Award Costs,Lancaster University,PIN057060,158469,
FCDO,CSC,18/02/2022,Tuition Fee,Award Costs,University of the West of England Bristol,PIN057065,13750,
FCDO,CSC,18/02/2022,Award Support Costs,Award Costs,The University of Edinburgh,PIN057066,10000,
FCDO,CSC,18/02/2022,Tuition Fee,Award Costs,The University of Edinburgh,PIN057067,648,
FCDO,CSC,18/02/2022,Scholar Allowances,Award Costs,Lond Sch Hygiene & Tropical Me,PIN057069,2330,
FCDO,CSC,18/02/2022,Scholar Travel,Award Costs,Lond Sch Hygiene & Tropical Me,PIN057069,322.88,
FCDO,CSC,18/02/2022,Visa Costs,Award Costs,Lond Sch Hygiene & Tropical Me,PIN057069,92.42,
FCDO,CSC,18/02/2022,Scholar Allowances,Award Costs,Lond Sch Hygiene & Tropical Me,PIN057069,39.22,
FCDO,CSC,18/02/2022,Tuition Fee,Award Costs,Lond Sch Hygiene & Tropical Me,PIN057069,22500,
FCDO,CSC,18/02/2022,Scholar Travel,Award Costs,Lond Sch Hygiene & Tropical Me,PIN057070,787.28,
FCDO,CSC,18/02/2022,Visa Costs,Award Costs,Lond Sch Hygiene & Tropical Me,PIN057070,93.26,
FCDO,CSC,18/02/2022,Scholar Allowances,Award Costs,Lond Sch Hygiene & Tropical Me,PIN057070,111.58,
FCDO,CSC,18/02/2022,Tuition Fee,Award Costs,Lond Sch Hygiene & Tropical Me,PIN057070,22500,
FCDO,CSC,18/02/2022,Tuition Fee,Award Costs,The University of Edinburgh,PIN057071,11165,
FCDO,CSC,18/02/2022,Tuition Fee,Award Costs,The University of Edinburgh,PIN057072,3830,
FCDO,CSC,18/02/2022,Award Support Costs,Award Costs,University of East Anglia,PIN057073,2335,
FCDO,CSC,18/02/2022,Award Support Costs,Award Costs,The University of Warwick,PIN057074,6666.65,
FCDO,CSC,18/02/2022,Scholar Allowances,Award Costs,University of Strathclyde,PIN057076,1800,
FCDO,CSC,18/02/2022,Scholar Travel,Award Costs,University of Strathclyde,PIN057076,3244.59,
FCDO,CSC,18/02/2022,Scholar Travel,Award Costs,University of Strathclyde,PIN057078,4095.48,
FCDO,CSC,18/02/2022,Scholar Allowances,Award Costs,University of Strathclyde,PIN057079,920.2,
FCDO,CSC,18/02/2022,Visa Costs,Award Costs,University of Strathclyde,PIN057079,500,
FCDO,CSC,18/02/2022,Tuition Fee,Award Costs,London School of Economics,PIN057080,67500,
FCDO,CSC,18/02/2022,Award Support Costs,Award Costs,Kings College London,PIN057081,5000,
FCDO,CSC,18/02/2022,Scholar Travel,Award Costs,Queen Margaret University,PIN057082,2451.88,
FCDO,CSC,18/02/2022,Tuition Fee,Award Costs,Brunel University,PIN057083,19855,
FCDO,CSC,18/02/2022,Tuition Fee,Award Costs,Brunel University,PIN057084,15884,
FCDO,CSC,18/02/2022,Tuition Fee,Award Costs,Brunel University,PIN057085,19855,
FCDO,CSC,18/02/2022,Tuition Fee,Award Costs,University of East Anglia,PIN057086,15600,
FCDO,CSC,18/02/2022,Tuition Fee,Award Costs,University of East Anglia,PIN057087,14080,
FCDO,CSC,18/02/2022,Tuition Fee,Award Costs,University of East Anglia,PIN057088,12720,
FCDO,CSC,18/02/2022,Tuition Fee,Award Costs,The Cambridge Commonwealth Trust,PIN057089,292500,
FCDO,CSC,18/02/2022,Tuition Fee,Award Costs,The Cambridge Commonwealth Trust,PIN057090,18000,
FCDO,CSC,18/02/2022,Tuition Fee,Award Costs,The Cambridge Commonwealth Trust,PIN057091,6000,
FCDO,CSC,18/02/2022,Tuition Fee,Award Costs,Lond Sch Hygiene & Tropical Me,PIN057092,7000,
FCDO,CSC,18/02/2022,Tuition Fee,Award Costs,The University of Warwick,PIN057094,18920,
FCDO,CSC,17/02/2022,Scholar Allowances,Award Costs,Scholar,PIN057095,515.66,
FCDO,CSC,17/02/2022,Scholar Allowances,Award Costs,Scholar,PIN057095,515.66,
FCDO,CSC,17/02/2022,Scholar Stipend,Award Costs,Scholar,PIN057095,2936.98,
FCDO,CSC,17/02/2022,Scholar Stipend,Award Costs,Scholar,PIN057097,2212.01,
FCDO,CSC,17/02/2022,Scholar Allowances,Award Costs,Scholar,PIN057098,924.57,
FCDO,CSC,17/02/2022,Scholar Allowances,Award Costs,Scholar,PIN057098,619.77,
FCDO,CSC,17/02/2022,Scholar Stipend,Award Costs,Scholar,PIN057098,3530.66,
FCDO,CSC,18/02/2022,Scholar Engagement,Programme Costs,QEII Taste-Compass Contract Services (UK) Ltd,PIN057101,34538.4,
FCDO,CSC,23/02/2022,Scholar Allowances,Award Costs,Scholar,PIN057106,828.19,
FCDO,CSC,23/02/2022,Scholar Allowances,Award Costs,Scholar,PIN057106,1235.5,
FCDO,CSC,18/02/2022,Scholar Allowances,Award Costs,Scholar,PIN057109,439,
FCDO,CSC,18/02/2022,Scholar Stipend,Award Costs,Scholar,PIN057109,1654.13,
FCDO,CSC,18/02/2022,Scholar Allowances,Award Costs,Scholar,PIN057109,439,
FCDO,CSC,18/02/2022,Scholar Stipend,Award Costs,Scholar,PIN057109,1654.13,
FCDO,CSC,18/02/2022,Scholar Allowances,Award Costs,Scholar,PIN057109,439,
FCDO,CSC,18/02/2022,Scholar Stipend,Award Costs,Scholar,PIN057109,2166.34,
FCDO,CSC,18/02/2022,Bank Charges,Programme Costs,MasterCard Prepaid Management Services Ltd,PIN057109,67.91,
FCDO,CSC,15/02/2022,Scholar Allowances,Award Costs,Scholar,PIN057111,439,
FCDO,CSC,15/02/2022,Scholar Stipend,Award Costs,Scholar,PIN057111,1728.52,
FCDO,CSC,15/02/2022,Scholar Allowances,Award Costs,Scholar,PIN057111,439,
FCDO,CSC,15/02/2022,Scholar Stipend,Award Costs,Scholar,PIN057111,1728.52,
FCDO,CSC,15/02/2022,Bank Charges,Programme Costs,MasterCard Prepaid Management Services Ltd,PIN057111,43.36,
FCDO,CSC,11/02/2022,Scholar Allowances,Award Costs,Scholar,PIN057112,439,
FCDO,CSC,11/02/2022,Scholar Stipend,Award Costs,Scholar,PIN057112,6798,
FCDO,CSC,11/02/2022,Bank Charges,Programme Costs,MasterCard Prepaid Management Services Ltd,PIN057112,72.37,
FCDO,CSC,25/02/2022,Tuition Fee,Award Costs,University of Bristol,PIN057116,18000,
FCDO,CSC,25/02/2022,Tuition Fee,Award Costs,University of Bristol,PIN057117,22500,
FCDO,CSC,25/02/2022,Tuition Fee,Award Costs,University of Bristol,PIN057118,16240,
FCDO,CSC,25/02/2022,Tuition Fee,Award Costs,University of Bristol,PIN057119,16160,
FCDO,CSC,25/02/2022,Tuition Fee,Award Costs,University of Bristol,PIN057120,20200,
FCDO,CSC,25/02/2022,Tuition Fee,Award Costs,University of Bristol,PIN057121,20200,
FCDO,CSC,25/02/2022,Tuition Fee,Award Costs,University of Bristol,PIN057122,19900,
FCDO,CSC,25/02/2022,Tuition Fee,Award Costs,University of Bristol,PIN057123,18000,
FCDO,CSC,25/02/2022,Tuition Fee,Award Costs,Keble College Oxford,PIN057124,18000,
FCDO,CSC,25/02/2022,Scholar Allowances,Award Costs,The University of Warwick,PIN057125,76.76,
FCDO,CSC,25/02/2022,Visa Costs,Award Costs,The University of Warwick,PIN057125,62.24,
FCDO,CSC,25/02/2022,Scholar Travel,Award Costs,The University of Warwick,PIN057125,25,
FCDO,CSC,25/02/2022,Scholar Travel,Award Costs,The University of Warwick,PIN057125,449.6,
FCDO,CSC,25/02/2022,Scholar Allowances,Award Costs,The University of Warwick,PIN057126,163,
FCDO,CSC,25/02/2022,Visa Costs,Award Costs,The University of Warwick,PIN057126,93,
FCDO,CSC,25/02/2022,Scholar Travel,Award Costs,The University of Warwick,PIN057126,45.1,
FCDO,CSC,25/02/2022,Scholar Travel,Award Costs,The University of Warwick,PIN057126,360.9,
FCDO,CSC,25/02/2022,Scholar Allowances,Award Costs,The University of Warwick,PIN057127,133.26,
FCDO,CSC,25/02/2022,Visa Costs,Award Costs,The University of Warwick,PIN057127,89,
FCDO,CSC,25/02/2022,Scholar Travel,Award Costs,The University of Warwick,PIN057127,40.2,
FCDO,CSC,25/02/2022,Scholar Travel,Award Costs,The University of Warwick,PIN057127,449.2,
FCDO,CSC,25/02/2022,Visa Costs,Award Costs,The University of Warwick,PIN057129,141,
FCDO,CSC,25/02/2022,Scholar Allowances,Award Costs,The University of Warwick,PIN057129,101,
FCDO,CSC,25/02/2022,Visa Costs,Award Costs,The University of Warwick,PIN057129,45.1,
FCDO,CSC,25/02/2022,Scholar Travel,Award Costs,The University of Warwick,PIN057129,668.8,
FCDO,CSC,25/02/2022,Scholar Allowances,Award Costs,The University of Warwick,PIN057130,92,
FCDO,CSC,25/02/2022,Scholar Allowances,Award Costs,The University of Warwick,PIN057130,112.83,
FCDO,CSC,25/02/2022,Visa Costs,Award Costs,The University of Warwick,PIN057130,58,
FCDO,CSC,25/02/2022,Scholar Travel,Award Costs,The University of Warwick,PIN057130,3.9,
FCDO,CSC,25/02/2022,Scholar Travel,Award Costs,The University of Warwick,PIN057130,563.9,
FCDO,CSC,25/02/2022,Award Support Costs,Award Costs,University of Stirling,PIN057133,5000,
FCDO,CSC,25/02/2022,Scholar Allowances,Award Costs,Lond Sch Hygiene & Tropical Me,PIN057134,300,
FCDO,CSC,25/02/2022,Scholar Travel,Award Costs,Lond Sch Hygiene & Tropical Me,PIN057134,443.87,
FCDO,CSC,25/02/2022,Tuition Fee,Award Costs,Cranfield University,PIN057135,21500,
FCDO,CSC,25/02/2022,Tuition Fee,Award Costs,Cranfield University,PIN057136,21500,
FCDO,CSC,25/02/2022,Tuition Fee,Award Costs,Cranfield University,PIN057137,21500,
FCDO,CSC,25/02/2022,Tuition Fee,Award Costs,Cranfield University,PIN057138,21500,
FCDO,CSC,25/02/2022,Tuition Fee,Award Costs,Cranfield University,PIN057139,21500,
FCDO,CSC,25/02/2022,Tuition Fee,Award Costs,Cranfield University,PIN057140,21500,
FCDO,CSC,25/02/2022,Tuition Fee,Award Costs,Cranfield University,PIN057141,21500,
FCDO,CSC,25/02/2022,Tuition Fee,Award Costs,Cranfield University,PIN057142,21500,
FCDO,CSC,25/02/2022,Award Support Costs,Award Costs,Cranfield University,PIN057143,5000,
FCDO,CSC,25/02/2022,Tuition Fee,Award Costs,Cranfield University,PIN057144,21500,
FCDO,CSC,25/02/2022,Tuition Fee,Award Costs,Cranfield University,PIN057145,21500,
FCDO,CSC,25/02/2022,Tuition Fee,Award Costs,Cranfield University,PIN057146,21500,
FCDO,CSC,25/02/2022,Tuition Fee,Award Costs,Cranfield University,PIN057147,21500,
FCDO,CSC,25/02/2022,Visa Costs,Award Costs,Goldsmiths College,PIN057148,14.59,
FCDO,CSC,25/02/2022,Scholar Allowances,Award Costs,Goldsmiths College,PIN057148,210.22,
FCDO,CSC,25/02/2022,Scholar Allowances,Award Costs,Goldsmiths College,PIN057148,225,
FCDO,CSC,25/02/2022,Scholar Travel,Award Costs,Goldsmiths College,PIN057148,573.4,
FCDO,CSC,25/02/2022,Scholar Allowances,Award Costs,Goldsmiths College,PIN057148,140,
FCDO,CSC,25/02/2022,Scholar Travel,Award Costs,Goldsmiths College,PIN057148,452.81,
FCDO,CSC,25/02/2022,Tuition Fee,Award Costs,University of Reading,PIN057149,13512,
FCDO,CSC,25/02/2022,Award Support Costs,Award Costs,Nottingham Trent University,PIN057150,8000,
FCDO,CSC,25/02/2022,Tuition Fee,Award Costs,Nottingham Trent University,PIN057150,12960,
FCDO,CSC,25/02/2022,Tuition Fee,Award Costs,University of Manchester,PIN057151,4831.8,
FCDO,CSC,25/02/2022,Tuition Fee,Award Costs,University of Manchester,PIN057152,4831.8,
FCDO,CSC,25/02/2022,Tuition Fee,Award Costs,University of Manchester,PIN057153,4831.8,
FCDO,CSC,25/02/2022,Tuition Fee,Award Costs,University of Manchester,PIN057154,4831.8,
FCDO,CSC,25/02/2022,Tuition Fee,Award Costs,University of Manchester,PIN057155,4831.8,
FCDO,CSC,25/02/2022,Tuition Fee,Award Costs,University of Manchester,PIN057156,5167.8,
FCDO,CSC,25/02/2022,Tuition Fee,Award Costs,University of Manchester,PIN057157,5167.8,
FCDO,CSC,25/02/2022,Tuition Fee,Award Costs,University of Manchester,PIN057158,5167.8,
FCDO,CSC,25/02/2022,Tuition Fee,Award Costs,University of Manchester,PIN057159,5167.8,
FCDO,CSC,25/02/2022,Tuition Fee,Award Costs,University of Manchester,PIN057160,5167.8,
FCDO,CSC,25/02/2022,Tuition Fee,Award Costs,Birkbeck College,PIN057161,10560,
FCDO,CSC,25/02/2022,Tuition Fee,Award Costs,University of Manchester,PIN057163,5167.8,
FCDO,CSC,25/02/2022,Tuition Fee,Award Costs,University of Manchester,PIN057165,5167.8,
FCDO,CSC,25/02/2022,Tuition Fee,Award Costs,University of Manchester,PIN057167,5167.8,
FCDO,CSC,25/02/2022,Award Support Costs,Award Costs,The University of Warwick,PIN057169,2000,
FCDO,CSC,25/02/2022,Tuition Fee,Award Costs,University of Manchester,PIN057171,5168,
FCDO,CSC,25/02/2022,Tuition Fee,Award Costs,University of Manchester,PIN057172,5167.8,
FCDO,CSC,25/02/2022,Scholar Allowances,Award Costs,Scholar,PIN057173,600,
FCDO,CSC,25/02/2022,Tuition Fee,Award Costs,University of Manchester,PIN057175,5167.8,
FCDO,CSC,25/02/2022,Tuition Fee,Award Costs,University of Manchester,PIN057177,4831.8,
FCDO,CSC,25/02/2022,Tuition Fee,Award Costs,University of Bath,PIN057179,22500,
FCDO,CSC,25/02/2022,Scholar Allowances,Award Costs,University of Bath,PIN057179,200,
FCDO,CSC,25/02/2022,Scholar Allowances,Award Costs,University of Bath,PIN057179,225,
FCDO,CSC,25/02/2022,Visa Costs,Award Costs,University of Bath,PIN057179,88.01,
FCDO,CSC,25/02/2022,Scholar Travel,Award Costs,University of Bath,PIN057179,578.3,
FCDO,CSC,25/02/2022,Scholar Allowances,Award Costs,Lond Sch Hygiene & Tropical Me,PIN057181,330,
FCDO,CSC,25/02/2022,Scholar Travel,Award Costs,Lond Sch Hygiene & Tropical Me,PIN057181,214.88,
FCDO,CSC,25/02/2022,Visa Costs,Award Costs,Lond Sch Hygiene & Tropical Me,PIN057181,449.9,
FCDO,CSC,25/02/2022,Scholar Travel,Award Costs,Lond Sch Hygiene & Tropical Me,PIN057181,7125,
FCDO,CSC,25/02/2022,Scholar Allowances,Award Costs,Lond Sch Hygiene & Tropical Me,PIN057181,2961.96,
FCDO,CSC,25/02/2022,Scholar Allowances,Award Costs,Lond Sch Hygiene & Tropical Me,PIN057181,1200,
FCDO,CSC,25/02/2022,Scholar Allowances,Award Costs,Lond Sch Hygiene & Tropical Me,PIN057181,1350,
FCDO,CSC,25/02/2022,Tuition Fee,Award Costs,Lond Sch Hygiene & Tropical Me,PIN057181,135000,
FCDO,CSC,25/02/2022,Visa Costs,Award Costs,Lond Sch Hygiene & Tropical Me,PIN057182,-11.69,
FCDO,CSC,25/02/2022,Scholar Allowances,Award Costs,Lond Sch Hygiene & Tropical Me,PIN057182,-89.99,
FCDO,CSC,25/02/2022,Scholar Travel,Award Costs,Lond Sch Hygiene & Tropical Me,PIN057182,-215.88,
FCDO,CSC,25/02/2022,Scholar Allowances,Award Costs,Lond Sch Hygiene & Tropical Me,PIN057182,-330,
FCDO,CSC,25/02/2022,Scholar Travel,Award Costs,Lond Sch Hygiene & Tropical Me,PIN057182,-17.96,
FCDO,CSC,25/02/2022,Scholar Travel,Award Costs,University of Glasgow,PIN057183,2531.62,
FCDO,CSC,25/02/2022,Tuition Fee,Award Costs,University of Glasgow,PIN057185,7306.67,
FCDO,CSC,25/02/2022,Tuition Fee,Award Costs,University of Glasgow,PIN057186,22500,
FCDO,CSC,25/02/2022,Tuition Fee,Award Costs,University of Glasgow,PIN057187,22500,
FCDO,CSC,25/02/2022,Award Support Costs,Award Costs,University of Glasgow,PIN057188,6000,
FCDO,CSC,25/02/2022,Award Support Costs,Award Costs,University of Kent,PIN057189,5000,
FCDO,CSC,25/02/2022,Tuition Fee,Award Costs,University of Kent,PIN057189,12560,
FCDO,CSC,25/02/2022,Tuition Fee,Award Costs,University of Kent,PIN057190,16800,
FCDO,CSC,25/02/2022,Tuition Fee,Award Costs,University of Kent,PIN057191,21500,
FCDO,CSC,25/02/2022,Tuition Fee,Award Costs,University of Kent,PIN057192,21500,
FCDO,CSC,25/02/2022,Scholar Allowances,Award Costs,Bangor University,PIN057193,675,
FCDO,CSC,25/02/2022,Scholar Allowances,Award Costs,Bangor University,PIN057193,600,
FCDO,CSC,25/02/2022,Scholar Travel,Award Costs,Bangor University,PIN057195,67.18,
FCDO,CSC,25/02/2022,Scholar Travel,Award Costs,Bangor University,PIN057195,2237.33,
FCDO,CSC,25/02/2022,Scholar Allowances,Award Costs,Bangor University,PIN057196,4570,
FCDO,CSC,25/02/2022,Tuition Fee,Award Costs,The University of Warwick,PIN057197,18000,
FCDO,CSC,25/02/2022,Tuition Fee,Award Costs,The University of Warwick,PIN057198,15792,
FCDO,CSC,25/02/2022,Tuition Fee,Award Costs,The University of Warwick,PIN057199,22500,
FCDO,CSC,25/02/2022,Tuition Fee,Award Costs,The University of Warwick,PIN057200,22340,
FCDO,CSC,25/02/2022,Tuition Fee,Award Costs,The University of Warwick,PIN057201,22340,
FCDO,CSC,25/02/2022,Tuition Fee,Award Costs,The University of Warwick,PIN057202,22500,
FCDO,CSC,25/02/2022,Tuition Fee,Award Costs,Bangor University,PIN057204,40457.3,
FCDO,CSC,25/02/2022,Award Support Costs,Award Costs,Imperial College London,PIN057205,5000,
FCDO,CSC,25/02/2022,Award Support Costs,Award Costs,Imperial College London,PIN057205,4000,
FCDO,CSC,25/02/2022,Award Support Costs,Award Costs,Imperial College London,PIN057205,20000,
FCDO,CSC,25/02/2022,Award Support Costs,Award Costs,Imperial College London,PIN057205,5000,
FCDO,CSC,25/02/2022,Award Support Costs,Award Costs,Imperial College London,PIN057205,5000,
FCDO,CSC,25/02/2022,Award Support Costs,Award Costs,Imperial College London,PIN057205,5000,
FCDO,CSC,25/02/2022,Award Support Costs,Award Costs,Imperial College London,PIN057205,2000,
FCDO,CSC,25/02/2022,Award Support Costs,Award Costs,Imperial College London,PIN057205,5400,
FCDO,CSC,25/02/2022,Award Support Costs,Award Costs,Imperial College London,PIN057205,5000,
FCDO,CSC,25/02/2022,Tuition Fee,Award Costs,Imperial College London,PIN057205,9000,
FCDO,CSC,25/02/2022,Tuition Fee,Award Costs,Imperial College London,PIN057205,9000,
FCDO,CSC,25/02/2022,Tuition Fee,Award Costs,Imperial College London,PIN057205,18000,
FCDO,CSC,25/02/2022,Tuition Fee,Award Costs,Imperial College London,PIN057205,18000,
FCDO,CSC,25/02/2022,Tuition Fee,Award Costs,Imperial College London,PIN057205,18000,
FCDO,CSC,25/02/2022,Tuition Fee,Award Costs,Imperial College London,PIN057205,18000,
FCDO,CSC,25/02/2022,Tuition Fee,Award Costs,Imperial College London,PIN057205,18000,
FCDO,CSC,25/02/2022,Tuition Fee,Award Costs,Imperial College London,PIN057205,18000,
FCDO,CSC,25/02/2022,Tuition Fee,Award Costs,Imperial College London,PIN057205,18000,
FCDO,CSC,25/02/2022,Tuition Fee,Award Costs,Imperial College London,PIN057205,18000,
FCDO,CSC,25/02/2022,Tuition Fee,Award Costs,Imperial College London,PIN057205,18000,
FCDO,CSC,25/02/2022,Tuition Fee,Award Costs,Imperial College London,PIN057205,18000,
FCDO,CSC,25/02/2022,Tuition Fee,Award Costs,Imperial College London,PIN057205,18000,
FCDO,CSC,25/02/2022,Tuition Fee,Award Costs,Imperial College London,PIN057205,18000,
FCDO,CSC,25/02/2022,Tuition Fee,Award Costs,Imperial College London,PIN057205,18000,
FCDO,CSC,25/02/2022,Tuition Fee,Award Costs,Imperial College London,PIN057205,18000,
FCDO,CSC,25/02/2022,Tuition Fee,Award Costs,Imperial College London,PIN057205,18000,
FCDO,CSC,25/02/2022,Tuition Fee,Award Costs,Imperial College London,PIN057205,18000,
FCDO,CSC,25/02/2022,Scholar Travel,Award Costs,Clarity Travel Limited,PIN057206,871.8,
FCDO,CSC,25/02/2022,Tuition Fee,Award Costs,University of South Wales,PIN057207,11600,
FCDO,CSC,25/02/2022,Tuition Fee,Award Costs,Sch Oriental & African Studies,PIN057208,16000,
FCDO,CSC,23/02/2022,Scholar Stipend,Award Costs,Scholar,PIN057210,1416.25,
FCDO,CSC,23/02/2022,Scholar Allowances,Award Costs,Scholar,PIN057212,275,
FCDO,CSC,23/02/2022,Scholar Stipend,Award Costs,Scholar,PIN057212,1133,
FCDO,CSC,23/02/2022,Scholar Allowances,Award Costs,Scholar,PIN057213,250,
FCDO,CSC,23/02/2022,Scholar Stipend,Award Costs,Scholar,PIN057213,1095.78,
FCDO,CSC,25/02/2022,Scholar Stipend,Award Costs,Scholar,PIN057214,1263.28,
FCDO,CSC,02/02/2022,Scholar Allowances,Award Costs,Scholar,PIN057287,136,
FCDO,CSC,02/02/2022,Scholar Allowances,Award Costs,Scholar,PIN057287,136,
FCDO,CSC,02/02/2022,Scholar Allowances,Award Costs,Scholar,PIN057287,136,
FCDO,CSC,02/02/2022,Scholar Allowances,Award Costs,Scholar,PIN057287,136,
FCDO,CSC,02/02/2022,Scholar Allowances,Award Costs,Scholar,PIN057287,136,
FCDO,CSC,02/02/2022,Scholar Allowances,Award Costs,Scholar,PIN057287,97,
FCDO,CSC,02/02/2022,Scholar Allowances,Award Costs,Scholar,PIN057287,97,
FCDO,CSC,02/02/2022,Scholar Allowances,Award Costs,Scholar,PIN057287,95,
FCDO,CSC,02/02/2022,Scholar Allowances,Award Costs,Scholar,PIN057287,69,
FCDO,CSC,02/02/2022,Scholar Allowances,Award Costs,Scholar,PIN057287,50,
FCDO,CSC,02/02/2022,Bank Charges,Programme Costs,MasterCard Prepaid Management Services Ltd,PIN057287,10.88,
FCDO,CSC,28/02/2022,Scholar Allowances,Award Costs,Scholar,PIN057288,439,
FCDO,CSC,28/02/2022,Scholar Allowances,Award Costs,Scholar,PIN057288,439,
FCDO,CSC,28/02/2022,Scholar Allowances,Award Costs,Scholar,PIN057288,439,
FCDO,CSC,28/02/2022,Scholar Allowances,Award Costs,Scholar,PIN057288,439,
FCDO,CSC,28/02/2022,Scholar Allowances,Award Costs,Scholar,PIN057288,439,
FCDO,CSC,28/02/2022,Scholar Allowances,Award Costs,Scholar,PIN057288,439,
FCDO,CSC,28/02/2022,Scholar Allowances,Award Costs,Scholar,PIN057288,439,
FCDO,CSC,28/02/2022,Scholar Allowances,Award Costs,Scholar,PIN057288,439,
FCDO,CSC,28/02/2022,Scholar Allowances,Award Costs,Scholar,PIN057288,439,
FCDO,CSC,28/02/2022,Scholar Allowances,Award Costs,Scholar,PIN057288,439,
FCDO,CSC,28/02/2022,Scholar Allowances,Award Costs,Scholar,PIN057288,439,
FCDO,CSC,28/02/2022,Scholar Allowances,Award Costs,Scholar,PIN057288,439,
FCDO,CSC,28/02/2022,Scholar Stipend,Award Costs,Scholar,PIN057288,1356.32,
FCDO,CSC,28/02/2022,Scholar Stipend,Award Costs,Scholar,PIN057288,1281.88,
FCDO,CSC,28/02/2022,Scholar Stipend,Award Costs,Scholar,PIN057288,1133,
FCDO,CSC,28/02/2022,Scholar Stipend,Award Costs,Scholar,PIN057288,1572.67,
FCDO,CSC,28/02/2022,Scholar Stipend,Award Costs,Scholar,PIN057288,1170.22,
FCDO,CSC,28/02/2022,Scholar Stipend,Award Costs,Scholar,PIN057288,1319.12,
FCDO,CSC,28/02/2022,Scholar Stipend,Award Costs,Scholar,PIN057288,1170.22,
FCDO,CSC,28/02/2022,Scholar Stipend,Award Costs,Scholar,PIN057288,1170.22,
FCDO,CSC,28/02/2022,Scholar Stipend,Award Costs,Scholar,PIN057288,1170.22,
FCDO,CSC,28/02/2022,Scholar Stipend,Award Costs,Scholar,PIN057288,1170.22,
FCDO,CSC,28/02/2022,Scholar Stipend,Award Costs,Scholar,PIN057288,1469.98,
FCDO,CSC,28/02/2022,Scholar Stipend,Award Costs,Scholar,PIN057288,1207.45,
FCDO,CSC,28/02/2022,Scholar Allowances,Award Costs,Scholar,PIN057288,250,
FCDO,CSC,28/02/2022,Scholar Stipend,Award Costs,Scholar,PIN057288,558.35,
FCDO,CSC,28/02/2022,Scholar Allowances,Award Costs,Scholar,PIN057288,439,
FCDO,CSC,28/02/2022,Scholar Allowances,Award Costs,Scholar,PIN057288,136,
FCDO,CSC,28/02/2022,Scholar Stipend,Award Costs,Scholar,PIN057288,775.45,
FCDO,CSC,28/02/2022,Bank Charges,Programme Costs,MasterCard Prepaid Management Services Ltd,PIN057288,226.16,
FCDO,CSC,28/02/2022,Scholar Allowances,Award Costs,Scholar,PIN057289,439,
FCDO,CSC,28/02/2022,Scholar Allowances,Award Costs,Scholar,PIN057289,439,
FCDO,CSC,28/02/2022,Scholar Stipend,Award Costs,Scholar,PIN057289,1133,
FCDO,CSC,28/02/2022,Scholar Stipend,Award Costs,Scholar,PIN057289,1393.57,
FCDO,CSC,28/02/2022,Bank Charges,Programme Costs,MasterCard Prepaid Management Services Ltd,PIN057289,34.05,
FCDO,CSC,04/02/2022,Engagement,Programme Costs,NatWest CC,NOM001129,59,
FCDO,CSC,04/02/2022,Engagement,Programme Costs,NatWest CC,NOM001129,921.29,
FCDO,CSC,04/02/2022,Engagement,Programme Costs,NatWest CC,NOM001129,886.04,
FCDO,CSC,04/02/2022,Engagement,Programme Costs,NatWest CC,NOM001129,38.79,
FCDO,CSC,04/02/2022,Engagement,Programme Costs,NatWest CC,NOM001129,19,
FCDO,CSC,04/02/2022,Engagement,Programme Costs,NatWest CC,NOM001129,43.93,
FCDO,CSC,04/02/2022,Engagement,Programme Costs,NatWest CC,NOM001129,17.99,
